bitfinex/quotes_BTCUSD_20240811
["timestamp","ask_amount","ask_price","bid_price","bid_amount"]
[1723356025187,1.98710841,61218.0,61217.0,0.0019152]
[1723356025362,1.99010841,61218.0,61217.0,0.0019152]
[1723356026831,2.21879841,61218.0,61217.0,0.0019152]
[1723356027392,2.22012925,61218.0,61217.0,0.0019152]
[1723356027953,2.21712925,61218.0,61217.0,0.0019152]
[1723356028320,2.38527895,61218.0,61217.0,0.0019152]
[1723356028580,2.38927895,61218.0,61217.0,0.0029152]
[1723356028749,2.38127895,61218.0,61217.0,0.0019152]
[1723356029307,2.38927895,61218.0,61217.0,0.0029152]
[1723356029742,2.38127895,61218.0,61217.0,0.0019152]
[1723356029980,2.37727895,61218.0,61217.0,0.0009152]
[1723356030815,2.37727895,61218.0,61217.0,0.0019152]
[1723356030816,2.22928072,61218.0,61217.0,0.0019152]
[1723356030969,2.32116812,61218.0,61217.0,0.0019152]
[1723356031168,2.38996812,61218.0,61217.0,0.0019152]
[1723356031371,2.37596812,61218.0,61217.0,0.0009152]
[1723356031774,2.38996812,61218.0,61217.0,0.0019152]
[1723356032759,2.39796812,61218.0,61217.0,0.0029152]
[1723356033156,2.38996812,61218.0,61217.0,0.0019152]
[1723356033380,2.38396812,61218.0,61217.0,0.0019152]
[1723356033774,2.38396812,61218.0,61217.0,0.0029152]
[1723356033775,2.23181842,61218.0,61217.0,0.0029152]
[1723356033973,2.17091842,61218.0,61217.0,0.0029152]
[1723356034381,2.17143102,61218.0,61217.0,0.0029152]
[1723356034786,2.1714308,61218.0,61217.0,0.0029152]
[1723356035308,2.0904308,61218.0,61217.0,0.0029152]
[1723356035511,2.0704308,61218.0,61217.0,0.0029152]
[1723356035710,2.0804308,61218.0,61217.0,0.0029152]
[1723356035916,2.0704308,61218.0,61217.0,0.0029152]
[1723356036114,1.9192308,61218.0,61217.0,0.0029152]
[1723356036342,2.08909588,61218.0,61217.0,0.0029152]
[1723356036551,2.08909588,61218.0,61217.0,0.0019152]
[1723356036748,2.06909588,61218.0,61217.0,0.0009152]
[1723356036947,1.97083311,61218.0,61217.0,0.0029152]
[1723356037181,1.99083311,61218.0,61217.0,0.0029152]
[1723356037514,1.97883311,61218.0,61217.0,0.0019152]
[1723356037831,1.92923029,61218.0,61217.0,0.0029152]
[1723356038129,1.99082332,61218.0,61217.0,0.0029152]
[1723356038301,1.61192046,61218.0,61217.0,0.1419152]
[1723356038513,0.93664332,61218.0,61217.0,0.1419152]
[1723356038716,0.94364332,61218.0,61217.0,0.1429152]
[1723356038913,0.93664332,61218.0,61217.0,0.1419152]
[1723356039235,1.15333332,61218.0,61217.0,0.1409152]
[1723356039436,1.15933332,61218.0,61217.0,0.1419152]
[1723356039641,1.15333332,61218.0,61217.0,0.1409152]
[1723356039929,1.16233332,61218.0,61217.0,0.1419152]
[1723356040128,1.17833332,61218.0,61217.0,0.1429152]
[1723356040262,1.15933332,61218.0,61217.0,0.1419152]
[1723356040462,0.94064332,61218.0,61217.0,0.1419152]
[1723356041052,0.60195332,61218.0,61217.0,0.1419152]
[1723356041206,0.60195332,61218.0,61217.0,0.1429152]
[1723356041207,0.66975332,61218.0,61217.0,0.1429152]
[1723356041409,0.66975296,61218.0,61217.0,0.1429152]
[1723356041606,0.89844296,61218.0,61217.0,0.1429152]
[1723356041790,0.09410304,61218.0,61217.0,0.1429152]
[1723356041991,0.14813161,61218.0,61217.0,0.1429152]
[1723356042191,0.02572481,61218.0,61217.0,0.1429152]
[1723356042419,0.12364925,61218.0,61217.0,0.1429152]
[1723356042624,0.07467901,61218.0,61217.0,0.1429152]
[1723356042828,0.05967901,61218.0,61217.0,0.1409152]
[1723356043203,0.07367901,61218.0,61217.0,0.1429152]
[1723356043407,0.01972481,61218.0,61217.0,0.1419152]
[1723356043616,0.01072481,61218.0,61217.0,0.1409152]
[1723356044016,0.01472481,61218.0,61217.0,0.1409152]
[1723356044221,0.06367901,61218.0,61217.0,0.1409152]
[1723356044758,0.06567901,61218.0,61217.0,0.1409152]
[1723356045088,0.01672481,61218.0,61217.0,0.1409152]
[1723356046545,0.63672481,61218.0,61217.0,0.1409152]
[1723356047880,0.63672481,61218.0,61217.0,0.2552622]
[1723356048866,0.63672481,61218.0,61217.0,0.1409152]
[1723356050075,0.63072481,61218.0,61217.0,0.1409152]
[1723356050275,0.63272481,61218.0,61217.0,0.1409152]
[1723356050854,0.63072481,61218.0,61217.0,0.1409152]
[1723356051951,0.74506981,61218.0,61217.0,0.1419152]
[1723356052725,0.63172481,61218.0,61217.0,0.1409152]
[1723356053124,0.63072481,61218.0,61217.0,0.1419152]
[1723356053521,0.63172481,61218.0,61217.0,0.1419152]
[1723356058834,0.63497443,61218.0,61217.0,0.1419152]
[1723356059854,0.63397443,61218.0,61217.0,0.1409152]
[1723356060344,0.63397443,61218.0,61217.0,0.1429152]
[1723356062169,0.63397443,61218.0,61217.0,0.2572622]
[1723356063887,0.63397443,61218.0,61217.0,0.1429152]
[1723356069514,0.63397443,61218.0,61217.0,0.2572622]
[1723356070677,0.63397443,61218.0,61217.0,0.1429152]
[1723356072652,0.63397443,61218.0,61217.0,0.2572622]
[1723356073054,0.63397443,61218.0,61217.0,0.2552622]
[1723356073230,0.63397443,61218.0,61217.0,0.2582622]
[1723356073598,0.63397443,61218.0,61217.0,0.2552622]
[1723356073805,0.63397443,61218.0,61217.0,0.1409152]
[1723356074928,0.63397443,61218.0,61217.0,0.1449152]
[1723356075138,0.01397443,61218.0,61217.0,0.1449152]
[1723356075341,0.01397443,61218.0,61217.0,0.1469152]
[1723356076857,0.01397443,61218.0,61217.0,0.2612622]
[1723356078732,0.01397443,61218.0,61217.0,0.2552622]
[1723356078911,0.01397443,61218.0,61217.0,0.4839562]
[1723356079173,0.01397443,61218.0,61217.0,0.4879562]
[1723356079381,0.00397478,61218.0,61217.0,0.4899562]
[1723356079662,0.00397478,61218.0,61217.0,0.4859562]
[1723356079816,0.00397478,61218.0,61217.0,0.4929562]
[1723356079998,0.01395625,61218.0,61217.0,0.4929562]
[1723356080955,0.01395625,61218.0,61217.0,0.4909562]
[1723356081164,0.00397478,61218.0,61217.0,0.7236502]
[1723356083122,0.00397478,61218.0,61217.0,0.85931287]
[1723356083325,0.00397478,61218.0,61217.0,0.7236502]
[1723356087897,0.01397337,61218.0,61217.0,0.7236502]
[1723356089040,0.01397337,61218.0,61217.0,0.85930951]
[1723356089440,0.00397478,61218.0,61217.0,0.85930951]
[1723356089649,0.00397478,61218.0,61217.0,1.08800351]
[1723356089852,0.00397478,61218.0,61217.0,1.25181843]
[1723356121300,0.00397478,61218.0,61217.0,1.93628654]
[1723356122525,0.00397478,61218.0,61217.0,2.10865768]
[1723356123885,0.00397478,61218.0,61217.0,2.09465768]
[1723356124692,0.00397478,61218.0,61217.0,1.54930919]
[1723356124991,0.00397478,61218.0,61217.0,2.10847706]
[1723356125296,0.00397478,61218.0,61217.0,1.80065162]
[1723356125595,0.00397478,61218.0,61217.0,2.10847463]
[1723356125795,0.00397478,61218.0,61217.0,2.09447463]
[1723356126144,0.00397478,61218.0,61217.0,2.08047463]
[1723356126538,0.00397478,61218.0,61217.0,2.12047463]
[1723356126784,0.00397478,61218.0,61217.0,2.35516863]
[1723356127202,0.00397478,61218.0,61217.0,2.40379679]
[1723356127364,0.0007994,61219.0,61218.0,1.267795]
[1723356127573,0.0007994,61219.0,61218.0,2.39166407]
[1723356128017,0.0007994,61219.0,61218.0,2.39145382]
[1723356128426,0.0007994,61219.0,61218.0,2.36713081]
[1723356128630,0.0007994,61219.0,61218.0,2.39144503]
[1723356129217,0.0007211,61224.0,61221.0,0.03]
[1723356129429,0.0007211,61224.0,61223.0,0.49405092]
[1723356129637,0.0007211,61224.0,61223.0,1.81501332]
[1723356129842,0.0007211,61224.0,61223.0,2.29535732]
[1723356130048,0.0007211,61224.0,61223.0,2.06668532]
[1723356130225,0.0007211,61224.0,61223.0,2.11530331]
[1723356130361,0.0007211,61224.0,61223.0,2.06668532]
[1723356131196,0.0007211,61224.0,61223.0,2.12930476]
[1723356132019,0.0007211,61224.0,61223.0,2.14332613]
[1723356132214,0.0007211,61224.0,61223.0,2.07452613]
[1723356132444,0.0007211,61224.0,61223.0,1.9086602]
[1723356132648,0.0007211,61224.0,61223.0,2.06670669]
[1723356132814,0.0007211,61224.0,61223.0,2.08070669]
[1723356133202,0.0007211,61224.0,61223.0,2.12932613]
[1723356133397,0.0007211,61224.0,61223.0,2.11532613]
[1723356133600,0.0007211,61224.0,61223.0,2.17963858]
[1723356133806,0.0007211,61224.0,61223.0,2.39631058]
[1723356133999,0.0007211,61224.0,61223.0,2.38231058]
[1723356134207,0.0007211,61224.0,61223.0,2.30937869]
[1723356134448,0.0007211,61224.0,61223.0,2.39632044]
[1723356134666,0.0007211,61224.0,61223.0,2.40662121]
[1723356134869,0.0007211,61224.0,61223.0,2.30937869]
[1723356135086,0.0007211,61224.0,61223.0,2.29737869]
[1723356135286,0.0007211,61224.0,61223.0,2.31937869]
[1723356135490,0.0007211,61224.0,61223.0,2.15186902]
[1723356135662,0.0007211,61224.0,61223.0,2.40661358]
[1723356136004,0.0007211,61224.0,61223.0,2.39261358]
[1723356136221,0.0007211,61224.0,61223.0,2.42061358]
[1723356136418,0.0007211,61224.0,61223.0,2.40661358]
[1723356136730,0.0007211,61224.0,61223.0,2.38234654]
[1723356137110,0.0015531,61224.0,61223.0,2.43661358]
[1723356137309,0.0015531,61224.0,61223.0,2.45061358]
[1723356137525,0.0015531,61224.0,61223.0,2.43861358]
[1723356137838,0.0015531,61224.0,61223.0,2.47694148]
[1723356138061,0.0015531,61224.0,61223.0,2.35537106]
[1723356138209,0.0015531,61224.0,61223.0,2.34137106]
[1723356138415,0.0015531,61224.0,61223.0,2.45264887]
[1723356138637,0.0015531,61224.0,61223.0,2.43064887]
[1723356138963,0.0015531,61224.0,61223.0,2.04373522]
[1723356139183,0.0015531,61224.0,61223.0,2.40275717]
[1723356139338,0.0015531,61224.0,61223.0,2.43675717]
[1723356139541,0.0015531,61224.0,61223.0,2.45075717]
[1723356139768,0.0015531,61224.0,61223.0,2.42475717]
[1723356140307,0.0015531,61224.0,61223.0,2.45275717]
[1723356140787,0.0015531,61224.0,61223.0,2.45275588]
[1723356142472,0.0015531,61224.0,61223.0,2.43075588]
[1723356142672,0.0015531,61224.0,61223.0,2.33347936]
[1723356143153,0.0015531,61224.0,61223.0,2.26567876]
[1723356143290,0.0015531,61224.0,61223.0,2.33347941]
[1723356143495,0.0015531,61224.0,61223.0,2.43075593]
[1723356143691,0.0015531,61224.0,61223.0,2.33347941]
[1723356144343,0.0015531,61224.0,61223.0,2.02600741]
[1723356144519,0.0015531,61224.0,61223.0,1.78554229]
[1723356146487,0.0015531,61224.0,61223.0,1.78555472]
[1723356146625,0.0015531,61224.0,61223.0,1.48044449]
[1723356146827,0.0015531,61224.0,61223.0,1.78556958]
[1723356147597,0.0015531,61224.0,61223.0,1.8342111]
[1723356148020,0.0015531,61224.0,61223.0,1.83421146]
[1723356149801,0.0015531,61224.0,61223.0,1.46128044]
[1723356149964,0.0015531,61224.0,61223.0,1.83421152]
[1723356150507,0.0015531,61224.0,61223.0,1.78557]
[1723356151469,0.1440531,61224.0,61223.0,0.7926163]
[1723356151679,0.1440531,61224.0,61223.0,0.028]
[1723356151891,0.1440531,61224.0,61223.0,0.142336]
[1723356152215,0.15260341,61224.0,61223.0,0.142336]
[1723356152419,0.228685,61220.0,61205.0,0.228738]
[1723356152624,0.0849,61210.0,61200.0,0.01]
[1723356152976,0.0849,61210.0,61203.0,0.114372]
[1723356153298,0.42798,61210.0,61200.0,0.01]
[1723356153501,0.19926,61210.0,61202.0,0.228748]
[1723356153672,0.19926,61210.0,61205.0,0.114369]
[1723356153879,0.0849,61210.0,61206.0,0.114367]
[1723356154052,0.0849,61210.0,61209.0,0.0019141]
[1723356154294,0.0849,61210.0,61209.0,0.0009141]
[1723356154503,0.0859,61210.0,61209.0,0.0009141]
[1723356155090,0.0849,61210.0,61209.0,0.0009141]
[1723356155501,0.08772479,61210.0,61209.0,0.0009141]
[1723356155785,0.09272479,61210.0,61209.0,0.0009141]
[1723356156106,0.08972479,61210.0,61209.0,0.0009141]
[1723356156317,0.09072479,61210.0,61209.0,0.0009141]
[1723356158303,0.08872479,61210.0,61209.0,0.0009141]
[1723356159023,0.08972479,61210.0,61209.0,0.0009141]
[1723356160466,0.08772479,61210.0,61209.0,0.0009141]
[1723356160809,0.08772479,61210.0,61209.0,0.0039141]
[1723356162765,0.0933742,61210.0,61209.0,0.0039141]
[1723356163214,0.0933742,61210.0,61209.0,0.0029141]
[1723356163558,0.09503195,61210.0,61209.0,0.0009141]
[1723356164161,0.09603195,61210.0,61209.0,0.0009141]
[1723356166097,1.43783195,61210.0,61209.0,0.0009141]
[1723356166254,0.66783195,61210.0,61209.0,0.0009141]
[1723356168307,0.66683195,61210.0,61209.0,0.0009141]
[1723356168810,0.73663195,61210.0,61209.0,0.0009141]
[1723356169926,0.73563195,61210.0,61209.0,0.0009141]
[1723356170361,0.73663195,61210.0,61209.0,0.0009141]
[1723356170683,0.73563195,61210.0,61209.0,0.0009141]
[1723356171255,0.66783195,61210.0,61209.0,0.0009141]
[1723356171439,0.67083195,61210.0,61209.0,0.0009141]
[1723356171640,0.66983195,61210.0,61209.0,0.0009141]
[1723356171777,0.43448095,61210.0,61209.0,0.0009141]
[1723356171982,0.43548095,61210.0,61209.0,0.0009141]
[1723356172797,0.43248095,61210.0,61209.0,0.0009141]
[1723356172997,0.43548095,61210.0,61209.0,0.0009141]
[1723356173243,0.43448095,61210.0,61209.0,0.0009141]
[1723356173405,0.43148095,61210.0,61209.0,0.0009141]
[1723356173603,0.43248095,61210.0,61209.0,0.0009141]
[1723356173806,0.43548095,61210.0,61209.0,0.0009141]
[1723356174709,0.50108095,61210.0,61209.0,0.0009141]
[1723356177506,0.27236095,61210.0,61209.0,0.0009141]
[1723356177690,0.20676095,61210.0,61209.0,0.0009141]
[1723356179054,0.20376095,61210.0,61209.0,0.0009141]
[1723356179638,0.20476095,61210.0,61209.0,0.0009141]
[1723356179859,0.09040095,61210.0,61209.0,0.0009141]
[1723356180023,0.09140095,61210.0,61209.0,0.0009141]
[1723356180337,0.01113195,61210.0,61209.0,0.0009141]
[1723356180552,0.01313195,61210.0,61209.0,0.0009141]
[1723356180997,0.01113195,61210.0,61209.0,0.0009141]
[1723356181396,0.01213195,61210.0,61209.0,0.0009141]
[1723356182182,0.01113195,61210.0,61209.0,0.0009141]
[1723356182384,0.01113195,61210.0,61209.0,0.1152761]
[1723356182587,0.228702,61215.0,61209.0,0.1152761]
[1723356182762,0.00726461,61210.0,61209.0,0.1152761]
[1723356182964,0.114355,61213.0,61209.0,0.1162761]
[1723356183185,0.00726771,61210.0,61209.0,0.1162761]
[1723356183389,0.114355,61213.0,61209.0,0.0009141]
[1723356183598,0.00727081,61210.0,61209.0,0.0009141]
[1723356183797,0.114356,61212.0,61209.0,0.0009141]
[1723356183997,0.00727391,61210.0,61209.0,0.0049141]
[1723356184197,0.00283014,61211.0,61209.0,0.0079141]
[1723356185661,0.00283014,61211.0,61209.0,0.0009141]
[1723356185862,0.00283014,61211.0,61209.0,0.0029141]
[1723356186118,0.00283014,61211.0,61209.0,0.1182751]
[1723356186474,0.000832,61211.0,61209.0,0.1152751]
[1723356186674,0.00725531,61210.0,61209.0,0.1192751]
[1723356186873,0.00725531,61210.0,61209.0,0.0079141]
[1723356187434,0.00725531,61210.0,61209.0,0.0009141]
[1723356188851,0.00725531,61210.0,61209.0,0.0059141]
[1723356189060,0.00725531,61210.0,61209.0,0.0099141]
[1723356192142,0.00725531,61210.0,61209.0,0.1242761]
[1723356192309,0.01008663,61210.0,61209.0,0.2661761]
[1723356192715,0.01008663,61210.0,61209.0,0.2571761]
[1723356192940,0.01008663,61210.0,61209.0,0.2611761]
[1723356193150,0.01008663,61210.0,61209.0,0.2641761]
[1723356193354,0.000832,61211.0,61210.0,0.11436]
[1723356194563,0.000832,61211.0,61210.0,0.34308]
[1723356195414,0.000832,61211.0,61210.0,0.42008]
[1723356195726,0.000832,61211.0,61210.0,0.42408]
[1723356195956,0.11519,61211.0,61210.0,0.007]
[1723356196156,0.12246918,61211.0,61210.0,0.007]
[1723356196739,0.12246918,61211.0,61210.0,0.004]
[1723356196946,0.12246918,61211.0,61209.0,0.0009141]
[1723356197142,0.12346918,61211.0,61210.0,0.002]
[1723356197566,0.12346918,61211.0,61209.0,0.0009141]
[1723356197766,0.04870713,61210.0,61209.0,0.0009141]
[1723356197945,0.05596655,61210.0,61209.0,0.0009141]
[1723356199075,0.08032012,61210.0,61209.0,0.0009141]
[1723356199899,0.08132012,61210.0,61209.0,0.0009141]
[1723356200729,0.08032012,61210.0,61209.0,0.0009141]
[1723356202382,0.00725942,61210.0,61209.0,0.0039141]
[1723356202925,0.00725942,61210.0,61209.0,0.0059141]
[1723356204314,0.08077967,61210.0,61209.0,0.0059141]
[1723356204514,0.00725942,61210.0,61209.0,0.0059141]
[1723356205299,0.08078127,61210.0,61209.0,0.0059141]
[1723356205528,0.08078096,61210.0,61209.0,0.0059141]
[1723356208090,0.00725942,61210.0,61209.0,0.0059141]
[1723356208520,0.08078096,61210.0,61209.0,0.0059141]
[1723356209740,0.08078096,61210.0,61209.0,0.0870141]
[1723356210730,0.08078096,61210.0,61209.0,0.1531141]
[1723356210989,0.05627446,61210.0,61209.0,0.1531141]
[1723356211365,0.0562748,61210.0,61209.0,0.1531141]
[1723356211569,0.00725942,61210.0,61209.0,0.1531141]
[1723356212265,0.08078096,61210.0,61209.0,0.1531141]
[1723356212475,0.00725942,61210.0,61209.0,0.1531141]
[1723356212657,0.0562741,61210.0,61209.0,0.1531141]
[1723356213694,0.00725942,61210.0,61209.0,0.1531141]
[1723356213993,0.05627376,61210.0,61209.0,0.1531141]
[1723356214242,0.00725942,61210.0,61209.0,0.1531141]
[1723356215185,0.05627376,61210.0,61209.0,0.1531141]
[1723356216565,0.05628134,61210.0,61209.0,0.1531141]
[1723356216681,0.0807923,61210.0,61209.0,0.1531141]
[1723356217343,0.1951523,61210.0,61209.0,0.0059141]
[1723356217515,0.1052881,61210.0,61209.0,0.0059141]
[1723356217721,0.00725942,61210.0,61209.0,0.0059141]
[1723356217920,0.08079899,61210.0,61209.0,0.0059141]
[1723356218323,0.08079899,61210.0,61209.0,0.0029141]
[1723356218555,0.00725942,61210.0,61209.0,0.0039141]
[1723356219162,0.00725942,61210.0,61209.0,0.0019141]
[1723356220555,0.8209881,61210.0,61209.0,0.0019141]
[1723356220777,0.85549528,61210.0,61209.0,0.0019141]
[1723356220974,0.72295942,61210.0,61209.0,0.0019141]
[1723356221148,0.72379142,61210.0,61209.0,0.0019141]
[1723356221354,0.72379142,61210.0,61209.0,0.0009141]
[1723356221777,0.72379142,61210.0,61209.0,0.0019141]
[1723356222100,0.49507142,61210.0,61209.0,0.0009141]
[1723356222342,0.61966959,61210.0,61209.0,0.0009141]
[1723356222539,0.49707142,61210.0,61209.0,0.0009141]
[1723356222666,0.61967724,61210.0,61209.0,0.0009141]
[1723356222865,0.47577724,61210.0,61209.0,0.0009141]
[1723356223087,0.01009142,61210.0,61209.0,0.0009141]
[1723356223264,0.10817329,61210.0,61209.0,0.0009141]
[1723356223464,0.01009142,61210.0,61209.0,0.0009141]
[1723356223663,0.01209142,61210.0,61209.0,0.0009141]
[1723356224071,0.12645142,61210.0,61209.0,0.0009141]
[1723356224271,0.24506146,61210.0,61209.0,0.0009141]
[1723356225198,0.24506146,61210.0,61209.0,0.0019141]
[1723356225409,0.12245142,61210.0,61209.0,0.0019141]
[1723356225788,0.12445142,61210.0,61209.0,0.0019141]
[1723356226234,0.12245142,61210.0,61209.0,0.0019141]
[1723356227383,0.35117142,61210.0,61209.0,0.0019141]
[1723356231351,0.43057142,61210.0,61209.0,0.0019141]
[1723356231554,0.43057142,61210.0,61209.0,0.0009141]
[1723356231818,0.43157142,61210.0,61209.0,0.0009141]
[1723356232160,0.43057142,61210.0,61209.0,0.0009141]
[1723356232362,0.43257142,61210.0,61209.0,0.0009141]
[1723356232784,0.43057142,61210.0,61209.0,0.0009141]
[1723356233177,0.43157142,61210.0,61209.0,0.0009141]
[1723356234867,0.55418032,61210.0,61209.0,0.0009141]
[1723356235465,0.43157142,61210.0,61209.0,0.0009141]
[1723356235981,0.55417864,61210.0,61209.0,0.0009141]
[1723356236420,0.43157142,61210.0,61209.0,0.0009141]
[1723356236664,0.66029142,61210.0,61209.0,0.0009141]
[1723356237036,0.65929142,61210.0,61209.0,0.0009141]
[1723356237268,1.14929142,61210.0,61209.0,0.0009141]
[1723356237504,0.87908389,61210.0,61209.0,0.0009141]
[1723356238482,0.73195599,61210.0,61209.0,0.0009141]
[1723356239103,0.74195599,61210.0,61209.0,0.0009141]
[1723356240410,0.67029142,61210.0,61209.0,0.0009141]
[1723356240735,0.73234559,61210.0,61209.0,0.0009141]
[1723356241311,0.65294559,61210.0,61209.0,0.0009141]
[1723356242975,0.58089142,61210.0,61209.0,0.0009141]
[1723356243191,0.65262904,61210.0,61209.0,0.0009141]
[1723356244138,0.6458438,61210.0,61209.0,0.0009141]
[1723356245502,0.65262904,61210.0,61209.0,0.0009141]
[1723356246672,0.65261907,61210.0,61209.0,0.0009141]
[1723356247498,0.6458337,61210.0,61209.0,0.0009141]
[1723356247701,0.65261908,61210.0,61209.0,0.0009141]
[1723356250320,0.0740337,61210.0,61209.0,0.0762141]
[1723356250562,0.00909142,61210.0,61209.0,0.1400141]
[1723356251049,0.12345142,61210.0,61209.0,0.1400141]
[1723356253398,0.12624597,61210.0,61209.0,0.1400141]
[1723356253748,0.35496597,61210.0,61209.0,0.1400141]
[1723356254160,0.35496597,61210.0,61209.0,0.0009141]
[1723356254762,0.64842677,61210.0,61209.0,0.0009141]
[1723356255364,0.65521205,61210.0,61209.0,0.0009141]
[1723356256989,0.64842677,61210.0,61209.0,0.0009141]
[1723356257367,0.65566223,61210.0,61209.0,0.0009141]
[1723356257780,0.64887705,61210.0,61209.0,0.0009141]
[1723356257934,0.65566225,61210.0,61209.0,0.0009141]
[1723356260828,0.64887705,61210.0,61209.0,0.0009141]
[1723356261060,0.6556623,61210.0,61209.0,0.0009141]
[1723356264576,0.64861293,61210.0,61209.0,0.0009141]
[1723356264735,0.6553982,61210.0,61209.0,0.0009141]
[1723356264936,0.58368597,61210.0,61209.0,0.0009141]
[1723356265144,0.64861258,61210.0,61209.0,0.0009141]
[1723356265344,0.65539783,61210.0,61209.0,0.0009141]
[1723356266114,1.16043275,61210.0,61209.0,0.0009141]
[1723356266232,2.1063295,61210.0,61209.0,0.0009141]
[1723356266457,2.25315275,61210.0,61209.0,0.0009141]
[1723356266656,2.45479132,61210.0,61209.0,0.0009141]
[1723356266880,3.1026736,61210.0,61209.0,0.0009141]
[1723356267689,3.1016736,61210.0,61209.0,0.0009141]
[1723356268244,3.1016736,61210.0,61209.0,0.0029141]
[1723356268245,3.1126736,61210.0,61209.0,0.0029141]
[1723356268426,3.1126736,61210.0,61209.0,0.0019141]
[1723356268427,3.2758233,61210.0,61209.0,0.0019141]
[1723356268568,2.62794102,61210.0,61209.0,0.0019141]
[1723356268775,3.50350925,61210.0,61209.0,0.0019141]
[1723356268975,2.85666102,61210.0,61209.0,0.0019141]
[1723356269505,2.85666102,61210.0,61204.0,0.0009141]
[1723356269506,3.09781486,61210.0,61204.0,0.0009141]
[1723356269695,1.52148638,61205.0,61204.0,0.0009141]
[1723356269897,2.56483681,61205.0,61204.0,0.0009141]
[1723356270118,0.830639,61201.0,61200.0,0.005]
[1723356270297,2.44305835,61201.0,61200.0,0.005]
[1723356270476,2.60720805,61201.0,61200.0,0.005]
[1723356270676,2.37425835,61201.0,61200.0,0.005]
[1723356270874,2.44305835,61201.0,61200.0,0.005]
[1723356271078,2.45259881,61201.0,61200.0,0.005]
[1723356271494,2.46059881,61201.0,61200.0,0.006]
[1723356271698,2.28603645,61201.0,61200.0,0.005]
[1723356271914,2.45482565,61201.0,61200.0,0.006]
[1723356272087,2.46782565,61201.0,61200.0,0.007]
[1723356272289,2.36520381,61201.0,61200.0,0.007]
[1723356273067,2.52935351,61201.0,61200.0,0.007]
[1723356273280,2.52935351,61201.0,61166.0,0.0009141]
[1723356273281,0.01,61185.0,61166.0,0.0009141]
[1723356273468,0.19324,61167.0,61166.0,0.0009141]
[1723356273588,0.69820153,61167.0,61166.0,0.0009141]
[1723356273793,0.6762849,61167.0,61166.0,0.0009141]
[1723356274248,0.62359444,61167.0,61166.0,0.0009141]
[1723356274454,0.34585985,61167.0,61166.0,0.0794141]
[1723356274638,0.35985985,61167.0,61166.0,0.0794141]
[1723356274826,0.58874085,61167.0,61166.0,0.0794141]
[1723356274997,0.35785985,61167.0,61166.0,0.0794141]
[1723356275219,0.37185985,61167.0,61166.0,0.0794141]
[1723356275419,0.35985985,61167.0,61166.0,0.0794141]
[1723356275620,0.58874085,61167.0,61166.0,0.0794141]
[1723356275827,0.36585985,61167.0,61166.0,0.0794141]
[1723356276273,0.1477,61166.0,61159.0,0.009152]
[1723356276471,0.34336,61160.0,61159.0,0.009152]
[1723356276872,0.57474146,61160.0,61159.0,0.009152]
[1723356277681,0.58474146,61160.0,61159.0,0.009152]
[1723356277922,0.81364846,61160.0,61159.0,0.009152]
[1723356278131,1.74446338,61160.0,61159.0,0.009152]
[1723356278297,0.98446338,61160.0,61159.0,0.009152]
[1723356278495,1.76446338,61160.0,61159.0,0.009152]
[1723356278703,0.98446338,61160.0,61159.0,0.009152]
[1723356279057,1.82081621,61160.0,61159.0,0.009152]
[1723356279244,1.84956338,61160.0,61159.0,0.009152]
[1723356279864,1.84256338,61160.0,61159.0,0.009152]
[1723356280225,1.80256338,61160.0,61159.0,0.009152]
[1723356280452,1.81256338,61160.0,61159.0,0.009152]
[1723356280657,1.08256338,61160.0,61159.0,0.009152]
[1723356280858,1.92256338,61160.0,61159.0,0.009152]
[1723356281041,1.93256338,61160.0,61159.0,0.009152]
[1723356281245,1.92456338,61160.0,61159.0,0.009152]
[1723356281660,1.93456338,61160.0,61159.0,0.009152]
[1723356282066,1.92456338,61160.0,61159.0,0.009152]
[1723356282286,1.93456338,61160.0,61159.0,0.009152]
[1723356282687,1.94165001,61160.0,61159.0,0.009152]
[1723356282900,0.01,61156.0,61138.0,0.009152]
[1723356283050,1.22396592,61139.0,61138.0,0.009152]
[1723356283307,1.13686592,61139.0,61138.0,0.009152]
[1723356283501,0.572465,61139.0,61138.0,0.009152]
[1723356284365,0.586465,61139.0,61138.0,0.009152]
[1723356284579,0.572465,61139.0,61138.0,0.009152]
[1723356284750,0.586465,61139.0,61138.0,0.009152]
[1723356284926,0.597465,61139.0,61138.0,0.009152]
[1723356285089,1.383465,61139.0,61138.0,0.009152]
[1723356285299,0.97626592,61139.0,61138.0,0.009152]
[1723356285640,1.78626592,61139.0,61138.0,0.009152]
[1723356286041,0.98626592,61139.0,61138.0,0.009152]
[1723356286268,1.85626592,61139.0,61138.0,0.009152]
[1723356286655,1.84526592,61139.0,61138.0,0.009152]
[1723356286856,0.97771019,61139.0,61138.0,0.009152]
[1723356287124,0.98871019,61139.0,61138.0,0.009152]
[1723356287341,0.97771019,61139.0,61138.0,0.009152]
[1723356287535,0.97871019,61139.0,61138.0,0.009152]
[1723356287935,0.98871019,61139.0,61138.0,0.009152]
[1723356288340,0.75972419,61139.0,61138.0,0.009152]
[1723356290228,0.98871019,61139.0,61138.0,0.009152]
[1723356291229,0.75972419,61139.0,61138.0,0.009152]
[1723356292022,0.98871019,61139.0,61138.0,0.009152]
[1723356293088,1.78871019,61139.0,61138.0,0.009152]
[1723356293280,0.98871019,61139.0,61138.0,0.009152]
[1723356293456,1.72871019,61139.0,61138.0,0.009152]
[1723356294866,1.10692327,61139.0,61138.0,0.075552]
[1723356295032,0.02344427,61139.0,61138.0,0.158052]
[1723356296108,0.01244427,61139.0,61138.0,0.272547]
[1723356296461,0.02344427,61139.0,61138.0,0.158052]
[1723356296656,0.01244427,61139.0,61138.0,0.158052]
[1723356296860,0.00244427,61139.0,61138.0,0.158052]
[1723356297065,0.01344427,61139.0,61138.0,0.158052]
[1723356297269,0.011,61139.0,61138.0,0.158052]
[1723356297460,0.02056423,61139.0,61138.0,0.158052]
[1723356297667,0.00956423,61139.0,61138.0,0.158052]
[1723356297846,0.01056423,61139.0,61138.0,0.158052]
[1723356298052,0.01056423,61139.0,61138.0,0.501537]
[1723356298255,0.01056423,61139.0,61138.0,0.272547]
[1723356298457,0.001,61139.0,61138.0,0.272547]
[1723356298859,0.01060145,61139.0,61138.0,0.272547]
[1723356299058,0.00345083,61139.0,61138.0,0.272547]
[1723356299260,0.01060865,61139.0,61138.0,0.158052]
[1723356299625,0.00345083,61139.0,61138.0,0.272547]
[1723356299740,0.00345083,61139.0,61138.0,0.730527]
[1723356299940,0.001,61139.0,61138.0,0.753527]
[1723356300791,0.11531,61147.0,61142.0,0.114486]
[1723356301034,0.11531,61147.0,61144.0,0.0642]
[1723356301259,0.58201225,61146.0,61145.0,0.0787]
[1723356301495,0.35305851,61146.0,61145.0,0.0787]
[1723356301731,0.12409851,61146.0,61145.0,0.0787]
[1723356301956,0.00961851,61146.0,61145.0,0.193181]
[1723356302178,0.000832,61147.0,61145.0,0.178681]
[1723356302361,0.000832,61147.0,61146.0,0.19318]
[1723356302563,0.000832,61147.0,61146.0,0.25738]